bitfinex-derivatives/quotes_BTCF0:USTF0_20210102
["timestamp","ask_amount","ask_price","bid_price","bid_amount"]
[1609551783472,0.26659,29307.0,29306.0,0.00036125]
[1609551785977,0.16549,29307.0,29306.0,0.00036125]
[1609551787077,0.16549,29307.0,29306.0,4.21946125]
[1609551787578,0.16549,29307.0,29306.0,0.00036125]
[1609551788279,0.18043158,29310.0,29306.0,0.00036125]
[1609551789381,0.1026,29309.0,29306.0,0.00036125]
[1609551789581,1.0,29309.0,29306.0,0.00036125]
[1609551790084,0.18043158,29307.0,29306.0,0.00036125]
[1609551790283,0.30160158,29307.0,29306.0,0.00036125]
[1609551790685,0.40370158,29307.0,29306.0,0.00036125]
[1609551791286,0.22327,29307.0,29306.0,0.00036125]
[1609551796091,0.40370158,29307.0,29306.0,0.00036125]
[1609551803000,0.30160158,29307.0,29306.0,0.03737411]
[1609551804401,0.30160158,29307.0,29306.0,0.00036125]
[1609551804902,0.30160158,29307.0,29306.0,0.03737338]
[1609551805102,0.2995275,29307.0,29306.0,0.03737338]
[1609551805503,1.2995275,29307.0,29306.0,0.03737338]
[1609551809707,1.4027275,29307.0,29306.0,0.03737338]
[1609551811112,1.2995275,29307.0,29306.0,0.03737338]
[1609551812518,1.2995275,29307.0,29306.0,4.64617338]
[1609551813615,0.2995275,29307.0,29306.0,4.64617338]
[1609551814615,0.11909592,29307.0,29306.0,4.64617338]
[1609551814816,1.0,29313.0,29306.0,4.64617338]
[1609551815117,1.0,29313.0,29307.0,0.03736981]
[1609551815518,0.14845,29314.0,29307.0,0.03736981]
[1609551815919,0.1018,29316.0,29307.0,0.03736981]
[1609551816318,0.1018,29316.0,29314.0,0.18043158]
[1609551816520,0.00041528,29315.0,29314.0,0.18043158]
[1609551816721,0.15945528,29315.0,29314.0,5.54353158]
[1609551817120,0.15945528,29315.0,29314.0,5.54389281]
[1609551819023,0.15738172,29315.0,29314.0,5.54389281]
[1609551819423,0.15738172,29315.0,29314.0,6.54389281]
[1609551819621,0.15738172,29315.0,29314.0,6.58099577]
[1609551821423,0.15738172,29315.0,29314.0,6.68289577]
[1609551821625,0.15738172,29315.0,29314.0,6.58099577]
[1609551821923,2.64694891,29323.0,29314.0,6.58099585]
[1609551822225,0.00041513,29322.0,29315.0,0.03745298]
[1609551822425,0.11606513,29322.0,29321.0,0.18043158]
[1609551822833,0.11606513,29322.0,29321.0,0.18079289]
[1609551823433,0.11565,29322.0,29321.0,5.37478171]
[1609551823836,0.10685,29322.0,29321.0,5.33769289]
[1609551824828,0.10685,29322.0,29321.0,4.33769289]
[1609551825232,0.10685,29322.0,29321.0,5.33769289]
[1609551825432,2.28819891,29323.0,29321.0,5.33769289]
[1609551826030,2.28819891,29323.0,29322.0,0.00036125]
[1609551827932,2.28819891,29323.0,29322.0,0.03036125]
[1609551828432,2.27169891,29323.0,29322.0,0.03036125]
[1609551831638,1.87299891,29323.0,29322.0,0.03036125]
[1609551832038,1.84199891,29323.0,29322.0,0.03036125]
[1609551832642,1.31659891,29323.0,29322.0,0.03036125]
[1609551833041,1.01809891,29323.0,29322.0,0.03036125]
[1609551833243,0.82079891,29323.0,29322.0,0.03036125]
[1609551834042,0.25819891,29323.0,29322.0,0.03036125]
[1609551834241,0.15739891,29323.0,29322.0,0.03036125]
[1609551834441,0.10909891,29323.0,29322.0,0.03036125]
[1609551834642,0.10575,29328.0,29322.0,0.03036125]
[1609551835044,0.10575,29328.0,29327.0,4.9844]
[1609551835245,0.10575,29328.0,29327.0,5.9844]
[1609551835444,0.10575,29328.0,29327.0,5.984761]
[1609551836247,0.10575,29328.0,29327.0,6.087861]
[1609551836645,0.10575,29328.0,29327.0,6.26829258]
[1609551839247,0.04625,29328.0,29327.0,6.26829258]
[1609551839649,0.03075,29328.0,29327.0,6.26829258]
[1609551839848,0.00433115,29339.0,29327.0,6.26829258]
[1609551840049,0.02068041,29340.0,29327.0,6.26829258]
[1609551840250,0.02068041,29340.0,29328.0,0.000361]
[1609551840650,0.61894171,29341.0,29328.0,0.000361]
[1609551840651,0.57062212,29341.0,29339.0,0.18043158]
[1609551840851,0.64571092,29342.0,29340.0,5.8688]
[1609551841052,0.64571092,29342.0,29340.0,5.869161]
[1609551841253,0.64571092,29342.0,29340.0,5.8688]
[1609551841653,0.61231092,29342.0,29340.0,5.8688]
[1609551841854,0.90445172,29348.0,29340.0,5.9702]
[1609551842254,0.90445172,29348.0,29341.0,0.00036097]
[1609551842655,0.87465172,29348.0,29347.0,0.18043158]
[1609551842858,0.87465172,29348.0,29347.0,1.92763158]
[1609551843858,0.87465172,29348.0,29347.0,2.03043158]
[1609551845061,0.1024,29359.0,29347.0,2.03043158]
[1609551845261,0.1024,29359.0,29347.0,1.28323158]
[1609551845663,0.18043158,29366.0,29359.0,4.5441]
[1609551846263,0.18043158,29366.0,29348.0,0.1032]
[1609551846463,0.19885293,29361.0,29349.0,1.0]
[1609551846665,0.19885293,29361.0,29360.0,0.18043158]
[1609551847264,0.30125293,29361.0,29360.0,0.18043158]
[1609551849768,0.19885293,29361.0,29360.0,0.18043158]
[1609551850571,0.19885293,29361.0,29360.0,0.76813158]
[1609551850770,0.19885293,29361.0,29360.0,0.87143158]
[1609551851769,0.19885293,29361.0,29360.0,0.18043158]
[1609551852772,0.37928451,29361.0,29360.0,0.18043158]
[1609551853174,0.19885293,29361.0,29360.0,0.18043158]
[1609551855076,0.19885293,29361.0,29360.0,5.07213158]
[1609551855876,0.1992676,29361.0,29360.0,0.18043158]
[1609551856277,0.19885293,29361.0,29360.0,0.18043158]
[1609551859079,0.19885293,29361.0,29360.0,0.28313158]
[1609551859479,0.19885293,29361.0,29360.0,0.18043158]
[1609551859480,0.19678286,29361.0,29360.0,0.18043158]
[1609551859680,0.19678286,29361.0,29360.0,0.18079239]
[1609551859880,0.19719743,29361.0,29360.0,0.18079239]
[1609551860079,0.19719743,29361.0,29360.0,0.18043158]
[1609551867389,0.29809743,29361.0,29360.0,0.18043158]
[1609551868491,0.19719743,29361.0,29360.0,0.18043158]
[1609551868695,0.19678286,29361.0,29360.0,0.18043158]
[1609551869794,0.19512699,29361.0,29360.0,0.18043158]
[1609551870193,0.19471236,29361.0,29360.0,0.18043158]
[1609551871198,0.29751236,29361.0,29360.0,0.18043158]
[1609551871995,0.29751236,29361.0,29360.0,0.18079245]
[1609551872197,0.19471236,29361.0,29360.0,0.18079245]
[1609551875203,0.29641236,29361.0,29360.0,0.18079245]
[1609551876305,0.19471236,29361.0,29360.0,0.18079245]
[1609551880908,0.19264205,29361.0,29360.0,0.18079245]
[1609551881108,0.19264205,29361.0,29360.0,0.00036087]
[1609551881408,0.19264205,29361.0,29359.0,0.00036405]
[1609551881611,0.19264205,29361.0,29360.0,0.18043158]
[1609551881808,0.29494205,29361.0,29360.0,0.18079563]
[1609551882610,0.19264205,29361.0,29360.0,0.18079563]
[1609551883613,0.29324205,29361.0,29360.0,0.18079563]
[1609551888819,0.29324205,29361.0,29360.0,0.21929928]
[1609551889620,0.19264205,29361.0,29360.0,0.21929928]
[1609551890423,0.19264205,29361.0,29360.0,0.18079563]
[1609551890621,0.29464205,29361.0,29360.0,0.18079563]
[1609551891023,0.29257154,29361.0,29360.0,0.00036405]
[1609551891423,0.29257154,29361.0,29355.0,0.0388685]
[1609551891823,0.29257154,29361.0,29360.0,0.00036409]
[1609551892023,0.29467154,29361.0,29356.0,0.18079567]
[1609551892225,0.29508622,29361.0,29360.0,0.00036411]
[1609551892527,0.0004147,29360.0,29357.0,0.00036413]
[1609551892726,0.29508624,29361.0,29360.0,0.00036413]
[1609551893026,0.29508624,29361.0,29357.0,0.00036413]
[1609551893325,0.29508624,29361.0,29360.0,0.00036413]
[1609551893526,0.29467154,29361.0,29358.0,0.00036413]
[1609551893725,0.18043158,29359.0,29358.0,0.00036413]
[1609551893928,0.18043158,29359.0,29357.0,0.00036413]
[1609551894128,0.1808463,29359.0,29358.0,0.00036415]
[1609551894330,0.18043158,29359.0,29358.0,0.00036415]
[1609551894629,0.18084631,29359.0,29357.0,0.00036415]
[1609551895033,0.18084631,29359.0,29358.0,0.00036415]
[1609551895233,0.18043158,29359.0,29358.0,0.00036415]
[1609551895431,0.18043158,29359.0,29345.0,1.72169076]
[1609551895432,0.18084631,29359.0,29348.0,0.00036415]
[1609551895632,1.18043158,29359.0,29348.0,0.00036415]
[1609551895833,1.0,29359.0,29358.0,0.00036415]
[1609551896033,1.0,29359.0,29352.0,0.18043158]
[1609551896233,0.1022,29358.0,29352.0,0.18043158]
[1609551896435,1.0,29359.0,29353.0,0.00036414]
[1609551897537,0.19267154,29361.0,29353.0,0.00036414]
[1609551897735,0.19267154,29361.0,29358.0,0.18043158]
[1609551898136,0.19267154,29361.0,29359.0,0.00036412]
[1609551899538,1.0,29360.0,29359.0,0.00036412]
[1609551899739,1.18043158,29360.0,29359.0,0.00036412]
[1609551900738,1.18043158,29360.0,29347.0,1.72522202]
[1609551900939,1.18043158,29360.0,29359.0,0.00036415]
[1609551901239,1.18043158,29360.0,29348.0,0.00036415]
[1609551901440,1.18043158,29360.0,29359.0,0.00036415]
[1609551901840,1.18043158,29360.0,29356.0,0.18043158]
[1609551902240,1.18043158,29360.0,29357.0,0.00036415]
[1609551902441,1.18043158,29360.0,29356.0,0.18043158]
[1609551903644,1.0,29357.0,29356.0,0.18043158]
[1609551903844,1.28383158,29357.0,29356.0,0.18043158]
[1609551904241,1.28383158,29357.0,29356.0,0.18079577]
[1609551904645,1.18043158,29357.0,29356.0,0.18079577]
[1609551904842,1.18043158,29357.0,29356.0,0.17079577]
[1609551907246,1.17836065,29357.0,29356.0,0.17079577]
[1609551907647,0.17836065,29357.0,29356.0,0.17079577]
[1609551907948,0.19267154,29361.0,29356.0,0.17079577]
[1609551908347,0.19267154,29361.0,29357.0,0.00036413]
[1609551909750,0.19267154,29361.0,29360.0,0.18043158]
[1609551910150,0.19267154,29361.0,29360.0,0.18079571]
[1609551912352,0.19267154,29361.0,29360.0,0.17429571]
[1609551917555,0.19267154,29361.0,29360.0,0.00036413]
[1609551917756,0.19267154,29361.0,29360.0,0.18079571]
[1609551917956,0.19267154,29361.0,29358.0,0.00036404]
[1609551918157,0.19267154,29361.0,29360.0,0.00036404]
[1609551918357,0.19267154,29361.0,29359.0,0.00036406]
[1609551918757,0.19267154,29361.0,29358.0,0.00036406]
[1609551918957,0.19267154,29361.0,29360.0,0.00036408]
[1609551919157,0.19267154,29361.0,29359.0,0.00036408]
[1609551919459,0.19267154,29361.0,29360.0,0.00036408]
[1609551919661,0.29587154,29361.0,29360.0,0.00036408]
[1609551920061,0.19267154,29361.0,29358.0,0.00036408]
[1609551920260,0.19267154,29361.0,29360.0,0.00036408]
[1609551920460,0.19267154,29361.0,29359.0,0.0003641]
[1609551920860,0.19267154,29361.0,29358.0,0.0003641]
[1609551921062,0.19267154,29361.0,29360.0,0.0003641]
[1609551921262,0.19267154,29361.0,29359.0,0.0003641]
[1609551921663,0.19267154,29361.0,29358.0,0.0003641]
[1609551921862,0.19267154,29361.0,29360.0,0.0003641]
[1609551922264,0.19267154,29361.0,29359.0,0.0003641]
[1609551922463,0.19267154,29361.0,29360.0,0.0003641]
[1609551922864,0.19267154,29361.0,29358.0,0.00036408]
[1609551923164,0.19267154,29361.0,29360.0,0.00036408]
[1609551923363,0.19267154,29361.0,29359.0,0.00036408]
[1609551923764,0.19267154,29361.0,29358.0,0.00036406]
[1609551923964,0.19267154,29361.0,29357.0,1.71653764]
[1609551923965,0.19267154,29361.0,29360.0,0.18079564]
[1609551924165,0.19267154,29361.0,29360.0,0.18043158]
[1609551924564,0.19267154,29361.0,29360.0,0.18079564]
[1609551925165,0.19267154,29361.0,29360.0,0.00036406]
[1609551925564,0.19267154,29361.0,29357.0,1.71653764]
[1609551925565,1.19267154,29361.0,29358.0,0.00036408]
[1609551925764,1.19267154,29361.0,29360.0,0.00036408]
[1609551925965,1.37310312,29361.0,29360.0,0.00036408]
[1609551926164,1.47540312,29361.0,29358.0,0.0003641]
[1609551926365,1.47333235,29361.0,29360.0,0.0003641]
[1609551926565,1.37103235,29361.0,29359.0,0.00036412]
[1609551926867,1.37103235,29361.0,29360.0,0.00036412]
[1609551927468,1.47183235,29361.0,29357.0,0.00036412]
[1609551927667,1.47183235,29361.0,29360.0,0.00036412]
[1609551927867,1.47183235,29361.0,29358.0,0.00036412]
[1609551928269,1.47183235,29361.0,29357.0,0.00036412]
[1609551928467,1.47183235,29361.0,29359.0,0.00036412]
[1609551928667,1.37103235,29361.0,29358.0,0.00036412]
[1609551929068,1.19060077,29361.0,29357.0,0.00036412]
[1609551929268,1.19060077,29361.0,29359.0,0.0003641]
[1609551929467,1.19060077,29361.0,29358.0,0.00036406]
[1609551929667,0.19060077,29361.0,29358.0,0.00036406]
[1609551929869,0.19060077,29361.0,29360.0,0.1807956]
[1609551930066,0.19060077,29361.0,29360.0,1.18043158]
[1609551930266,0.19060077,29361.0,29360.0,1.18079558]
[1609551930468,0.18850077,29361.0,29360.0,1.18079558]
[1609551931567,0.29010077,29361.0,29360.0,1.18079558]
[1609551931768,0.18850077,29361.0,29360.0,1.18079558]
[1609551933968,0.28920077,29361.0,29360.0,1.18079558]
[1609551934368,0.28920077,29361.0,29360.0,0.18079558]
[1609551936872,0.18850077,29361.0,29360.0,0.18079558]
[1609551937872,0.29190077,29361.0,29360.0,0.18079558]
[1609551938075,0.18850077,29361.0,29360.0,1.18079558]
[1609551939074,0.29000077,29361.0,29360.0,1.18079558]
[1609551939476,0.18850077,29361.0,29360.0,1.18079558]
[1609551941378,0.1864307,29361.0,29360.0,1.18079558]
[1609551943184,0.1864307,29361.0,29360.0,0.18079558]
[1609551944784,0.1864307,29361.0,29360.0,1.18079558]
[1609551946586,0.1864307,29361.0,29360.0,2.89822455]
[1609551947485,0.1864307,29361.0,29360.0,1.18079558]
[1609551951788,0.1864307,29361.0,29360.0,2.89801468]
[1609551951987,0.1864307,29361.0,29360.0,2.93631317]
[1609551954488,0.18436073,29361.0,29360.0,1.21909407]
[1609551958795,0.18436073,29361.0,29360.0,1.32249407]
[1609551959196,0.18436073,29361.0,29360.0,1.21909407]
[1609551960397,0.18436073,29361.0,29360.0,1.32039407]
[1609551960597,0.18436073,29361.0,29360.0,1.21909407]
[1609551962299,0.18436073,29361.0,29360.0,1.76909407]
[1609551962899,0.18436073,29361.0,29360.0,1.84215111]
[1609551963198,0.18436073,29361.0,29360.0,1.76909407]
[1609551963700,0.63897762,29383.0,29360.0,3.48930793]
[1609551963899,0.13269,29362.0,29360.0,3.48930793]
[1609551964100,0.13269,29362.0,29361.0,0.03865805]
[1609551964303,0.10969,29362.0,29361.0,0.03865805]
[1609551964800,0.10969,29362.0,29361.0,0.11170483]
[1609551965000,0.10969,29362.0,29361.0,1.11170483]
[1609551965201,0.10762067,29362.0,29361.0,1.11170483]
[1609551965401,0.02079801,29386.0,29361.0,1.03865805]
[1609551965603,0.02079801,29386.0,29361.0,1.11170189]
[1609551965905,0.0004144,29385.0,29362.0,0.03865316]
[1609551966305,0.1163544,29385.0,29384.0,0.18043158]
[1609551966707,0.1163544,29385.0,29384.0,0.18079502]
[1609551968310,0.29678598,29385.0,29384.0,0.18079502]
[1609551968709,0.29888598,29385.0,29384.0,0.18079502]
[1609551973818,0.29847158,29385.0,29384.0,0.18079502]
[1609551975019,0.29847158,29385.0,29384.0,0.00036344]
[1609551975220,4.43607158,29385.0,29384.0,0.00036344]
[1609551975423,4.43607158,29385.0,29370.0,0.00036344]
[1609551975623,5.43648602,29385.0,29384.0,0.00036348]
[1609551976023,5.43607158,29385.0,29371.0,0.00036348]
[1609551976224,5.43648603,29385.0,29369.0,1.71635015]
[1609551976425,0.00041445,29384.0,29373.0,0.18043158]
[1609551977025,0.00041445,29384.0,29374.0,0.0003635]
[1609551978326,0.18043158,29375.0,29374.0,0.0003635]
[1609551978725,0.32505158,29375.0,29374.0,0.0003635]
[1609551982230,0.32505158,29375.0,29364.0,0.00036354]
[1609551982429,0.18043158,29365.0,29364.0,0.00036354]
[1609551982831,0.32646158,29365.0,29364.0,0.00036354]
[1609551983637,1.32646158,29365.0,29364.0,0.00036354]
[1609551984637,1.32646158,29365.0,29363.0,0.18079515]
[1609551985037,1.32646158,29365.0,29364.0,0.00036357]
[1609551985639,0.32646158,29365.0,29364.0,0.00036357]
[1609551988542,0.14603,29365.0,29364.0,0.00036357]
[1609551988740,1.0,29369.0,29364.0,0.00036357]
[1609551989741,0.2776,29374.0,29364.0,0.00036357]
[1609551990544,0.2776,29374.0,29373.0,0.18043158]
[1609551991045,0.2776,29374.0,29373.0,0.18079511]
[1609551993453,0.2755302,29374.0,29373.0,0.18079511]
[1609552002361,0.2755302,29374.0,29373.0,4.89379511]
[1609552003663,0.14462,29375.0,29373.0,4.89379511]
[1609552003868,0.18043158,29376.0,29373.0,5.89379511]
[1609552004167,0.18043158,29376.0,29374.0,0.00036388]
[1609552005267,0.2869,29381.0,29374.0,0.00036388]
[1609552006068,0.90679952,29389.0,29376.0,0.02]
[1609552006268,0.7550884,29385.0,29376.0,0.02]
[1609552006670,0.7550884,29385.0,29384.0,0.18043158]
[1609552007071,0.7550884,29385.0,29384.0,0.18079543]
[1609552008174,0.7550884,29385.0,29384.0,0.00036385]
[1609552008678,0.93551998,29385.0,29383.0,0.18043158]
[1609552009079,0.93551998,29385.0,29384.0,0.00036385]
[1609552012084,0.29637158,29385.0,29384.0,0.00036385]
[1609552012785,0.29637158,29385.0,29384.0,4.57666385]
[1609552013584,0.29847158,29385.0,29384.0,4.57666385]
[1609552014286,0.29847158,29385.0,29384.0,0.00036385]
[1609552015886,0.29847158,29385.0,29383.0,0.18043158]
[1609552017090,0.29847158,29385.0,29384.0,0.00036384]
[1609552017490,0.29847158,29385.0,29384.0,0.76976384]
[1609552018592,0.11804,29385.0,29384.0,0.76976384]
[1609552018992,0.11804,29385.0,29384.0,0.00036384]
[1609552019792,0.11804,29385.0,29384.0,0.59216384]
[1609552021395,0.11804,29385.0,29384.0,0.00036384]
[1609552021594,1.11804,29385.0,29384.0,0.00036384]
[1609552022694,1.29847158,29385.0,29384.0,0.00036384]
[1609552023596,0.29847158,29385.0,29384.0,0.00036384]
[1609552024499,0.29888595,29385.0,29384.0,0.00036384]
[1609552026698,0.29847158,29385.0,29384.0,0.00036384]
[1609552027101,0.29888594,29385.0,29384.0,0.00036384]
[1609552027699,1.29888594,29385.0,29384.0,0.00036384]
[1609552027902,1.29847158,29385.0,29384.0,0.00036384]
[1609552029203,1.29888595,29385.0,29384.0,0.00036384]
[1609552029804,1.29888595,29385.0,29377.0,0.00036384]
[1609552030004,1.29888595,29385.0,29384.0,0.00036384]
[1609552030406,1.29847158,29385.0,29378.0,0.00036386]
[1609552030604,1.29888598,29385.0,29384.0,0.00036386]
[1609552030805,0.0004144,29384.0,29380.0,0.18043158]
[1609552031105,1.29888598,29385.0,29380.0,0.18043158]
[1609552031305,0.0004144,29383.0,29381.0,0.00036385]
[1609552031604,0.0004144,29384.0,29381.0,0.00036385]
[1609552031804,0.0004144,29382.0,29381.0,0.00036385]
[1609552032107,0.0004144,29384.0,29381.0,0.00036385]
[1609552032505,0.0004144,29382.0,29381.0,0.00036385]
[1609552032706,0.0004144,29383.0,29381.0,0.00036385]
[1609552032906,0.18084598,29382.0,29381.0,0.00036385]
[1609552033406,0.18084598,29382.0,29377.0,0.00036385]
[1609552033608,1.18084598,29382.0,29377.0,0.00036385]
[1609552033806,0.0004144,29381.0,29377.0,0.00036385]
[1609552034810,0.0004144,29381.0,29380.0,0.18043158]
[1609552035308,1.0,29382.0,29380.0,0.18079545]
[1609552035510,0.00041441,29381.0,29380.0,0.18079545]
[1609552035709,1.00041441,29381.0,29380.0,0.18079545]
[1609552036209,1.00041441,29381.0,29380.0,0.18043158]
[1609552036410,1.00041441,29381.0,29380.0,0.18079544]
[1609552036810,1.18084599,29381.0,29380.0,0.18079544]
[1609552039610,1.28404599,29381.0,29380.0,0.18079544]
[1609552039914,1.28363158,29381.0,29380.0,0.18079544]
[1609552040111,1.28197673,29381.0,29380.0,0.18079544]
[1609552041714,0.28197673,29381.0,29380.0,0.18079544]
[1609552043216,0.17877673,29381.0,29380.0,0.18079544]
[1609552043615,1.18087673,29381.0,29380.0,0.18079544]
[1609552049721,0.18087673,29381.0,29380.0,0.18079544]
[1609552050321,0.18087673,29381.0,29370.0,1.72600953]
[1609552050922,0.0004144,29380.0,29371.0,0.03883554]
[1609552051622,1.0,29372.0,29371.0,0.03883554]
[1609552052024,1.15869,29372.0,29371.0,0.03883554]
[1609552053025,1.33912158,29372.0,29371.0,0.03883554]
[1609552055626,0.33912158,29372.0,29371.0,0.03883554]
[1609552057733,1.33912158,29372.0,29371.0,0.03883554]
[1609552059031,1.33705203,29372.0,29371.0,0.03883554]
[1609552065638,0.33705203,29372.0,29371.0,0.03883554]
[1609552065837,1.33705203,29372.0,29371.0,0.03883554]
[1609552066840,1.33705203,29372.0,29371.0,0.00036384]
[1609552069543,1.44025203,29372.0,29371.0,0.00036384]
[1609552072444,1.33705203,29372.0,29371.0,0.00036384]
[1609552073644,0.33705203,29372.0,29371.0,0.00036384]
[1609552074346,0.33498236,29372.0,29371.0,0.00036384]
[1609552076649,0.43658236,29372.0,29371.0,0.00036384]
[1609552077249,0.33498236,29372.0,29371.0,0.00036384]
[1609552078249,0.33498236,29372.0,29371.0,0.03922106]
[1609552078651,0.33498236,29372.0,29371.0,0.00036384]
[1609552079450,0.33498236,29372.0,29371.0,0.03922129]
[1609552081952,0.33498236,29372.0,29371.0,3.91952129]
[1609552082151,0.15455078,29372.0,29371.0,4.91952129]
[1609552082351,0.296,29380.0,29371.0,4.91952129]
[1609552082956,0.296,29380.0,29372.0,0.039219]
[1609552083454,0.296,29380.0,29379.0,0.18043158]
[1609552083654,0.296,29380.0,29379.0,1.99433158]
[1609552084053,0.29641442,29380.0,29379.0,1.99469627]
[1609552085553,0.296,29380.0,29379.0,1.99469627]
[1609552087955,0.29393073,29380.0,29379.0,1.99469627]
[1609552088156,0.0021,29381.0,29379.0,1.99469627]
[1609552088755,0.0021,29381.0,29380.0,0.00036465]
[1609552089156,0.1043,29381.0,29380.0,0.00036465]
[1609552090759,0.0021,29381.0,29380.0,0.00036465]
[1609552091762,0.0021,29381.0,29380.0,4.46546465]
[1609552091961,0.0021,29381.0,29380.0,5.46546465]
[1609552098569,0.11594,29385.0,29380.0,5.46546465]
[1609552098769,0.11387142,29385.0,29380.0,5.46546465]
[1609552098971,0.11387142,29385.0,29381.0,0.00036459]
[1609552099169,0.2852,29390.0,29381.0,0.00036459]
[1609552099570,0.2852,29390.0,29389.0,0.18043158]
[1609552099770,0.2852,29390.0,29389.0,1.18043158]
[1609552099972,0.2852,29390.0,29389.0,1.18079617]
[1609552101771,0.2873,29390.0,29389.0,1.18079617]
[1609552102173,0.0021,29390.0,29389.0,1.18079617]
[1609552105078,0.12092,29390.0,29389.0,0.18079617]
[1609552106877,0.12092,29390.0,29389.0,1.18079617]
[1609552109683,0.12092,29390.0,29389.0,0.18079617]
[1609552110384,0.12092,29390.0,29389.0,1.18079617]
[1609552110584,0.1188517,29390.0,29389.0,1.18079617]
[1609552110785,0.1188517,29390.0,29389.0,6.35449617]
[1609552112893,0.1188517,29390.0,29389.0,5.35449617]
[1609552114290,0.1188517,29390.0,29389.0,6.35449617]
[1609552115194,0.1188517,29390.0,29389.0,5.35449617]
[1609552115393,0.1188517,29390.0,29389.0,6.35449617]
[1609552115793,0.1188517,29390.0,29389.0,5.35449617]
[1609552117697,0.1188517,29390.0,29389.0,6.35449617]
[1609552120702,0.1188517,29390.0,29389.0,0.18079617]
[1609552121101,0.1188517,29390.0,29389.0,1.18079617]
[1609552121802,0.11882,29390.0,29389.0,1.18079617]
[1609552122002,0.16912,29390.0,29389.0,1.18079617]
[1609552122403,0.16912,29390.0,29389.0,0.18079617]
[1609552122806,0.16705223,29390.0,29389.0,0.18079617]
[1609552124707,0.16705223,29390.0,29389.0,1.18079617]
[1609552125908,0.16705223,29390.0,29389.0,0.18079617]
[1609552127309,0.18043158,29402.0,29389.0,0.18079617]
[1609552127912,0.00041413,29401.0,29390.0,0.00036534]
[1609552128111,0.11354413,29401.0,29390.0,0.00036534]
[1609552128512,0.11354413,29401.0,29389.0,0.00036534]
[1609552128712,0.11313,29401.0,29391.0,0.00036534]
[1609552128912,0.11313,29401.0,29389.0,0.03960275]
[1609552129213,0.11313,29401.0,29392.0,0.00036534]
[1609552129414,0.11313,29401.0,29390.0,0.00036534]
[1609552129716,0.11313,29401.0,29393.0,0.00036534]
[1609552129915,0.11313,29401.0,29400.0,0.18043158]
[1609552130116,0.11313,29401.0,29400.0,4.60493158]
[1609552130315,0.11313,29401.0,29400.0,4.60529692]
[1609552132017,0.11313,29401.0,29400.0,0.18079692]
[1609552133019,0.04172539,29404.0,29400.0,0.18079692]
[1609552133418,0.04172539,29404.0,29401.0,0.00036534]
[1609552133919,0.04172539,29404.0,29403.0,0.18043158]
[1609552134421,0.04172539,29404.0,29403.0,0.18079692]
[1609552134821,0.04213951,29404.0,29403.0,0.00036534]
[1609552135223,0.04213951,29404.0,29387.0,0.00036537]
[1609552135421,1.284,29403.0,29387.0,0.00036537]
[1609552135623,1.45205,29403.0,29386.0,3.8361]
[1609552135822,1.0,29388.0,29386.0,3.8361]
[1609552136021,0.1027,29387.0,29386.0,3.8361]
[1609552136224,1.12762,29388.0,29386.0,3.8361]
[1609552137723,1.0,29387.0,29386.0,3.8361]
[1609552138123,1.18043158,29387.0,29386.0,4.01689707]
[1609552140123,1.28373158,29387.0,29386.0,4.01689707]
[1609552140723,1.28373158,29387.0,29386.0,4.01653158]
[1609552141123,1.28373158,29387.0,29386.0,4.01689708]
[1609552141323,1.28373158,29387.0,29386.0,4.01726255]
[1609552141626,1.18043158,29387.0,29386.0,4.01726255]
[1609552141825,0.18043158,29387.0,29386.0,4.01726255]
[1609552142025,0.12762,29388.0,29386.0,4.01726255]
[1609552142326,1.0,29389.0,29387.0,0.00036549]
[1609552142725,0.1005,29388.0,29387.0,0.00036549]
[1609552142926,0.12979,29388.0,29387.0,0.00036549]
[1609552143727,1.12979,29388.0,29387.0,0.00036549]
[1609552147732,0.12979,29388.0,29387.0,0.00036549]
[1609552147932,0.17388,29392.0,29387.0,0.00036549]
[1609552150032,0.17388,29392.0,29391.0,0.18043158]
[1609552150532,0.17388,29392.0,29391.0,0.180797]
[1609552152936,0.18043158,29399.0,29391.0,0.180797]
[1609552153537,0.18043158,29399.0,29392.0,0.00036544]
[1609552153736,1.0,29393.0,29392.0,0.00036544]
[1609552154037,1.15494,29393.0,29392.0,0.00036544]
[1609552156139,1.33537158,29393.0,29392.0,0.00036544]
[1609552161145,1.33578588,29393.0,29387.0,0.00036549]
[1609552161345,0.1015,29392.0,29381.0,1.7200943]
[1609552161545,0.00041433,29392.0,29388.0,0.00036552]
[1609552161945,0.00041433,29392.0,29385.0,5.6937]
[1609552162145,0.00041433,29392.0,29391.0,0.18043158]
[1609552162745,0.00041433,29392.0,29391.0,0.0003655]
[1609552163146,0.00041433,29392.0,29386.0,0.0003655]
[1609552163546,0.00041433,29392.0,29391.0,0.0003655]
[1609552163746,0.00041433,29392.0,29387.0,0.0003655]
[1609552163946,0.00041433,29392.0,29391.0,0.0003655]
[1609552164347,0.00041433,29392.0,29388.0,0.0003655]
[1609552164546,0.00041433,29392.0,29391.0,0.0003655]
[1609552164746,0.00041433,29392.0,29389.0,0.0003655]
[1609552164948,0.00041433,29392.0,29391.0,0.0003655]
[1609552165248,0.00041433,29392.0,29385.0,0.0003655]
[1609552165647,0.00041433,29392.0,29391.0,0.0003655]
[1609552165847,0.00041433,29392.0,29386.0,0.0003655]
[1609552166048,0.00041433,29392.0,29391.0,0.0003655]
[1609552166448,0.00041433,29392.0,29387.0,0.00036551]
[1609552166647,0.00041433,29392.0,29391.0,0.00036551]
[1609552166847,0.00041433,29392.0,29388.0,0.00036551]
[1609552167146,0.10221433,29392.0,29391.0,0.00036551]
[1609552167347,0.10221433,29392.0,29389.0,0.00036551]
[1609552167549,0.00041433,29392.0,29389.0,0.00036551]
[1609552167747,1.00041433,29392.0,29391.0,0.00036551]
[1609552167947,1.00041433,29392.0,29390.0,0.00036551]
[1609552168147,1.00041433,29392.0,29391.0,0.00036551]
[1609552168548,1.1006,29392.0,29391.0,0.00036551]
[1609552168748,1.00041433,29392.0,29385.0,0.00036553]
[1609552168948,1.00041433,29392.0,29391.0,0.00036553]
[1609552169248,0.00041433,29391.0,29386.0,0.00036553]
[1609552169449,1.00041433,29392.0,29384.0,0.18043158]
[1609552169750,1.0,29387.0,29385.0,0.00036552]
[1609552170153,1.11583,29387.0,29385.0,0.00036552]
[1609552170351,0.18043158,29386.0,29385.0,0.00036552]
[1609552171753,1.18043158,29386.0,29385.0,0.00036552]
[1609552174455,1.18043158,29386.0,29384.0,0.18043158]
[1609552174754,1.18043158,29386.0,29385.0,0.00036552]
[1609552178155,1.1808459,29386.0,29376.0,0.0003655]
[1609552178355,1.00041432,29386.0,29380.0,0.18043158]
[1609552178556,1.00041432,29386.0,29385.0,0.0003655]
[1609552178755,0.00041432,29385.0,29381.0,0.0003655]
[1609552178957,0.00041432,29385.0,29380.0,0.18043158]
[1609552178958,1.00041432,29386.0,29380.0,0.18043158]
[1609552179256,1.0,29386.0,29382.0,0.00036569]
[1609552179456,0.00041433,29385.0,29381.0,0.00036569]
[1609552179857,4.40787529,29387.0,29383.0,0.00036569]